[Event "Dvaro taure"]
[Site "Taujenai, Lithuania"]
[Date "2021.11.28"]
[Round "6.20"]
[White "Praspaliauskas, Matas"]
[Black "Vainermanas, Berelis"]
[Result "1/2-1/2"]
[WhiteElo "1443"]
[BlackElo "1663"]
[PlyCount "60"]
[EventDate "2021.??.??"]
[TimeControl "10+5"]
[WhiteClock "0:00:08"]
[BlackClock "0:02:05"]

1. e4 {[%emt 0:00:01]} d6 {[%emt 0:00:02]} 2. d4 {[%emt 0:00:02]} Nf6 {[%emt 0:
00:02]} 3. Nc3 {[%emt 0:00:02]} g6 {[%emt 0:00:02]} 4. g3 {[%emt 0:00:03]} Bg7
{[%emt 0:00:02]} 5. Bg2 {[%emt 0:00:02]} O-O {[%emt 0:00:04]} 6. Nf3 {[%emt 0:
00:02]} c5 {[%emt 0:00:04]} 7. dxc5 {[%emt 0:00:21]} Qa5 {[%emt 0:00:01]} 8.
O-O {[%emt 0:00:30]} Qxc5 {[%emt 0:00:02]} 9. Re1 {[%emt 0:00:21]} Nc6 {[%emt
0:00:27]} 10. Nd5 {[%emt 0:00:50]} Nxd5 {[%emt 0:01:22]} 11. exd5 {[%emt 0:00:
06]} Nb4 {[%emt 0:00:04]} 12. c3 {[%emt 0:00:53]} Nxd5 {[%emt 0:00:39]} 13. Ng5
{[%emt 0:03:11]} e6 {[%emt 0:00:28]} 14. Bxd5 {[%emt 0:01:52]} exd5 {[%emt 0:
00:16]} 15. Qf3 {[%emt 0:00:40]} h6 {[%emt 0:00:26]} 16. Nxf7 {[%emt 0:00:19]}
Bh3 {[%emt 0:00:49]} 17. Re7 {[%emt 0:01:19]} Qc4 {[%emt 0:01:14]} 18. b3 {
[%emt 0:00:39]} Bg4 {[%emt 0:00:55]} 19. Nxh6+ {[%emt 0:00:15]} Bxh6 {[%emt 0:
00:09]} 20. Bxh6 {[%emt 0:00:11]} Rxf3 {[%emt 0:00:13]} 21. bxc4 {[%emt 0:00:
02]} Bf5 {[%emt 0:00:26]} 22. Be3 {[%emt 0:00:15]} dxc4 {[%emt 0:00:12]} 23.
Rxb7 {[%emt 0:00:02]} a5 {[%emt 0:00:18]} 24. Rd1 {[%emt 0:00:01]} Ra6 {[%emt
0:00:21]} 25. Re7 {[%emt 0:00:03]} Bd3 {[%emt 0:00:13]} 26. Bd4 {[%emt 0:00:06]
} d5 {[%emt 0:00:43]} 27. Rde1 {[%emt 0:00:03]} Rf7 {[%emt 0:00:16]} 28. Re8+ {
[%emt 0:00:13]} Rf8 {[%emt 0:00:06]} 29. R8e7 {[%emt 0:00:06]} Rf7 {[%emt 0:00:
22]} 30. Re8+ {[%emt 0:00:06]} Rf8 {[%emt 0:00:04]} 1/2-1/2

[Event "Dvaro taure"]
[Site "Taujenai, Lithuania"]
[Date "2021.11.28"]
[Round "6.21"]
[White "Cmilis, Viktoras"]
[Black "Matulaitis, Mantas"]
[Result "1-0"]
[WhiteElo "1621"]
[BlackElo "1176"]
[PlyCount "65"]
[EventDate "2021.??.??"]
[TimeControl "10+5"]
[WhiteClock "0:00:56"]
[BlackClock "0:00:18"]

1. d4 {[%emt 0:00:02]} b6 {[%emt 0:00:05]} 2. c4 {[%emt 0:00:04]} e6 {[%emt 0:
00:02]} 3. Nf3 {[%emt 0:00:05]} Bb7 {[%emt 0:00:01]} 4. e3 {[%emt 0:00:04]} d5
{[%emt 0:00:02]} 5. Nc3 {[%emt 0:00:06]} Nf6 {[%emt 0:00:12]} 6. g3 {[%emt 0:
00:14]} Ba6 {[%emt 0:00:31]} 7. b3 {[%emt 0:00:34]} Bb4 {[%emt 0:00:24]} 8. Bb2
{[%emt 0:00:06]} Ne4 {[%emt 0:00:11]} 9. Qc2 {[%emt 0:00:05]} Qf6 {[%emt 0:00:
20]} 10. Be2 {[%emt 0:02:19]} O-O {[%emt 0:02:29]} 11. O-O {[%emt 0:00:19]}
Bxc3 {[%emt 0:00:16]} 12. Bxc3 {[%emt 0:00:08]} Nd7 {[%emt 0:00:14]} 13. Bb4 {
[%emt 0:00:29]} c5 {[%emt 0:00:57]} 14. Ba3 {[%emt 0:00:20]} Rfe8 {[%emt 0:00:
16]} 15. dxc5 {[%emt 0:00:40]} Ndxc5 {[%emt 0:00:18]} 16. Bb2 {[%emt 0:00:09]}
Qh6 {[%emt 0:00:39]} 17. Kg2 {[%emt 0:00:16]} Ng5 {[%emt 0:00:36]} 18. h4 {
[%emt 0:00:53]} Nge4 {[%emt 0:00:35]} 19. Nh2 {[%emt 0:01:23]} f5 {[%emt 0:00:
28]} 20. b4 {[%emt 0:00:18]} Nb7 {[%emt 0:00:25]} 21. b5 {[%emt 0:00:05]} Bxb5
{[%emt 0:00:24]} 22. cxb5 {[%emt 0:00:02]} Rac8 {[%emt 0:00:00]} 23. Qd3 {
[%emt 0:00:13]} Nbc5 {[%emt 0:00:23]} 24. Qd4 {[%emt 0:00:12]} g5 {[%emt 0:01:
24]} 25. hxg5 {[%emt 0:01:25]} Nxg5 {[%emt 0:00:04]} 26. Qh4 {[%emt 0:00:13]}
Qg6 {[%emt 0:00:21]} 27. Bh5 {[%emt 0:00:24]} Kf7 {[%emt 0:00:29]} 28. Bxg6+ {
[%emt 0:00:03]} Kxg6 {[%emt 0:00:01]} 29. f4 {[%emt 0:00:10]} Nf7 {[%emt 0:00:
09]} 30. Qf6+ {[%emt 0:00:04]} Kh5 {[%emt 0:00:04]} 31. Nf3 {[%emt 0:00:06]}
Rg8 {[%emt 0:00:13]} 32. Rh1+ {[%emt 0:00:04]} Kg4 {[%emt 0:00:03]} 33. Rh4# {
[%emt 0:00:06]} 1-0

[Event "Dvaro taure"]
[Site "Taujenai, Lithuania"]
[Date "2021.11.28"]
[Round "6.22"]
[White "Velicka, Ramunas"]
[Black "Mikolavicius, Julius"]
[Result "1-0"]
[WhiteElo "1606"]
[BlackElo "1152"]
[PlyCount "79"]
[EventDate "2021.??.??"]
[TimeControl "10+5"]
[WhiteClock "0:05:31"]
[BlackClock "0:06:22"]

1. e4 {[%emt 0:00:25]} e5 {[%emt 0:00:00]} 2. Nf3 {[%emt 0:00:02]} Nc6 {[%emt
0:00:00]} 3. d4 {[%emt 0:00:05]} exd4 {[%emt 0:00:08]} 4. Nxd4 {[%emt 0:00:02]}
Nxd4 {[%emt 0:00:01]} 5. Qxd4 {[%emt 0:00:02]} Nf6 {[%emt 0:00:02]} 6. Bc4 {
[%emt 0:00:02]} b6 {[%emt 0:00:07]} 7. e5 {[%emt 0:00:08]} Bc5 {[%emt 0:00:02]}
8. Qf4 {[%emt 0:00:11]} d5 {[%emt 0:00:38]} 9. Bb5+ {[%emt 0:00:20]} Nd7 {
[%emt 0:00:13]} 10. Bc6 {[%emt 0:00:22]} Rb8 {[%emt 0:00:09]} 11. e6 {[%emt 0:
00:45]} fxe6 {[%emt 0:00:13]} 12. O-O {[%emt 0:00:18]} Bb7 {[%emt 0:00:10]} 13.
Re1 {[%emt 0:00:17]} Bxc6 {[%emt 0:00:15]} 14. Rxe6+ {[%emt 0:00:03]} Be7 {
[%emt 0:00:02]} 15. Rxc6 {[%emt 0:00:08]} Bd6 {[%emt 0:00:27]} 16. Qe3+ {[%emt
0:00:27]} Ne5 {[%emt 0:00:14]} 17. f4 {[%emt 0:00:25]} Bc5 {[%emt 0:00:01]} 18.
Rxc5 {[%emt 0:00:02]} bxc5 {[%emt 0:00:05]} 19. Qxe5+ {[%emt 0:00:03]} Qe7 {
[%emt 0:00:04]} 20. Qxe7+ {[%emt 0:00:22]} Kxe7 {[%emt 0:00:03]} 21. Be3 {
[%emt 0:00:05]} Rxb2 {[%emt 0:00:09]} 22. Bxc5+ {[%emt 0:00:03]} Kd7 {[%emt 0:
00:07]} 23. Na3 {[%emt 0:00:07]} Rb7 {[%emt 0:00:14]} 24. Rd1 {[%emt 0:00:06]}
c6 {[%emt 0:00:03]} 25. c4 {[%emt 0:00:07]} Ke6 {[%emt 0:00:07]} 26. Re1+ {
[%emt 0:00:20]} Kf5 {[%emt 0:00:05]} 27. cxd5 {[%emt 0:00:16]} cxd5 {[%emt 0:
00:02]} 28. g3 {[%emt 0:00:07]} Rd7 {[%emt 0:00:20]} 29. Re5+ {[%emt 0:00:09]}
Kf6 {[%emt 0:00:45]} 30. Nb5 {[%emt 0:00:06]} Ra8 {[%emt 0:00:27]} 31. Nd4 {
[%emt 0:00:07]} h6 {[%emt 0:00:16]} 32. g4 {[%emt 0:00:05]} g5 {[%emt 0:00:09]}
33. Rf5+ {[%emt 0:00:08]} Kg6 {[%emt 0:00:05]} 34. fxg5 {[%emt 0:00:09]} hxg5 {
[%emt 0:00:00]} 35. Nf3 {[%emt 0:00:28]} Rc8 {[%emt 0:00:27]} 36. Ne5+ {[%emt
0:00:02]} Kg7 {[%emt 0:00:06]} 37. Nxd7 {[%emt 0:00:03]} Rc7 {[%emt 0:00:18]}
38. Rxd5 {[%emt 0:00:09]} Kf7 {[%emt 0:00:07]} 39. Rf5+ {[%emt 0:00:43]} Ke6 {
[%emt 0:00:09]} 40. Nf8# {[%emt 0:00:11]} 1-0

[Event "Dvaro taure"]
[Site "Taujenai, Lithuania"]
[Date "2021.11.28"]
[Round "6.23"]
[White "Aleidzans, Vadims"]
[Black "Mikulinaite, Meta"]
[Result "1-0"]
[WhiteElo "1563"]
[BlackElo "1104"]
[PlyCount "64"]
[EventDate "2021.??.??"]
[TimeControl "10+5"]
[WhiteClock "0:01:02"]

1. e4 {[%emt 0:00:03]} e5 {[%emt 0:00:00]} 2. Nf3 {[%emt 0:00:02]} Nc6 {[%emt
0:00:02]} 3. Bb5 {[%emt 0:00:02]} Bc5 {[%emt 0:00:05]} 4. c3 {[%emt 0:00:04]}
a6 {[%emt 0:00:03]} 5. Bxc6 {[%emt 0:01:16]} bxc6 {[%emt 0:00:08]} 6. Nxe5 {
[%emt 0:00:09]} Qg5 {[%emt 0:00:10]} 7. O-O {[%emt 0:03:47]} Qxe5 {[%emt 0:02:
38]} 8. d4 {[%emt 0:00:02]} Bxd4 {[%emt 0:00:02]} 9. cxd4 {[%emt 0:00:02]} Qe6
{[%emt 0:00:08]} 10. Nc3 {[%emt 0:00:03]} Ne7 {[%emt 0:00:17]} 11. Bf4 {[%emt
0:00:13]} d6 {[%emt 0:00:26]} 12. Re1 {[%emt 0:00:38]} O-O {[%emt 0:00:10]} 13.
Qd2 {[%emt 0:01:00]} Ng6 {[%emt 0:00:53]} 14. Bg3 {[%emt 0:00:11]} Re8 {[%emt
0:00:20]} 15. Rac1 {[%emt 0:00:02]} Bb7 {[%emt 0:00:16]} 16. h3 {[%emt 0:00:18]
} Rab8 {[%emt 0:00:49]} 17. f4 {[%emt 0:00:08]} Qd7 {[%emt 0:00:21]} 18. f5 {
[%emt 0:00:10]} Ne7 {[%emt 0:00:05]} 19. Rf1 {[%emt 0:01:00]} Nc8 {[%emt 0:00:
13]} 20. f6 {[%emt 0:00:17]} gxf6 {[%emt 0:00:41]} 21. Rxf6 {[%emt 0:00:02]}
Ne7 {[%emt 0:00:16]} 22. Rcf1 {[%emt 0:00:04]} Rf8 {[%emt 0:00:21]} 23. e5 {
[%emt 0:00:40]} dxe5 {[%emt 0:00:38]} 24. Bxe5 {[%emt 0:00:03]} Ng6 {[%emt 0:
00:04]} 25. Qg5 {[%emt 0:00:16]} Rbe8 {[%emt 0:00:58]} 26. Ne4 {[%emt 0:00:13]}
Rxe5 {[%emt 0:01:35]} 27. dxe5 {[%emt 0:00:02]} Qd4+ {[%emt 0:00:03]} 28. Nf2 {
[%emt 0:00:09]} Qxb2 {[%emt 0:00:13]} 29. Ng4 {[%emt 0:00:13]} Qd4+ {[%emt 0:
00:11]} 30. Kh1 {[%emt 0:00:03]} Kh8 {[%emt 0:00:17]} 31. Nh6 {[%emt 0:00:22]}
c5 {[%emt 0:00:13]} 32. Nxf7+ {[%emt 0:00:07]} Kg7 {[%emt 0:00:07]} 1-0

[Event "Dvaro taure"]
[Site "Taujenai, Lithuania"]
[Date "2021.11.28"]
[Round "6.24"]
[White "Mecelis, Arturas (J)"]
[Black "Griksaite, Ruta"]
[Result "1-0"]
[WhiteElo "1562"]
[BlackElo "1098"]
[PlyCount "133"]
[EventDate "2021.??.??"]
[TimeControl "10+5"]
[WhiteClock "0:00:33"]
[BlackClock "0:02:39"]

1. d4 {[%emt 0:00:00]} Nf6 {[%emt 0:00:04]} 2. c4 {[%emt 0:00:04]} e6 {[%emt 0:
00:02]} 3. Nc3 {[%emt 0:00:02]} d5 {[%emt 0:00:04]} 4. Nf3 {[%emt 0:00:06]} c6
{[%emt 0:00:03]} 5. Bg5 {[%emt 0:00:10]} Nbd7 {[%emt 0:00:07]} 6. e3 {[%emt 0:
00:03]} Qa5 {[%emt 0:00:10]} 7. a3 {[%emt 0:00:10]} Be7 {[%emt 0:00:30]} 8. b4
{[%emt 0:00:10]} Qd8 {[%emt 0:00:10]} 9. c5 {[%emt 0:00:03]} h6 {[%emt 0:00:31]
} 10. Bh4 {[%emt 0:00:07]} O-O {[%emt 0:00:35]} 11. Bd3 {[%emt 0:00:02]} Nh7 {
[%emt 0:00:10]} 12. Bg3 {[%emt 0:00:18]} Ndf6 {[%emt 0:00:18]} 13. Qc2 {[%emt
0:00:03]} Re8 {[%emt 0:00:13]} 14. Ne5 {[%emt 0:00:28]} Nf8 {[%emt 0:00:27]}
15. O-O {[%emt 0:01:29]} N6d7 {[%emt 0:00:09]} 16. f4 {[%emt 0:00:51]} Nxe5 {
[%emt 0:00:55]} 17. fxe5 {[%emt 0:00:02]} f5 {[%emt 0:00:49]} 18. exf6 {[%emt
0:00:42]} Bxf6 {[%emt 0:00:07]} 19. Bg6 {[%emt 0:00:08]} Nxg6 {[%emt 0:00:06]}
20. Qxg6 {[%emt 0:00:02]} Kh8 {[%emt 0:00:28]} 21. Be5 {[%emt 0:01:36]} Rf8 {
[%emt 0:00:21]} 22. Ra2 {[%emt 0:01:29]} Bxe5 {[%emt 0:00:43]} 23. dxe5 {[%emt
0:01:40]} Bd7 {[%emt 0:00:23]} 24. Raf2 {[%emt 0:00:17]} Rxf2 {[%emt 0:00:07]}
25. Rxf2 {[%emt 0:00:02]} Qg8 {[%emt 0:00:16]} 26. Qf7 {[%emt 0:01:05]} Qxf7 {
[%emt 0:00:20]} 27. Rxf7 {[%emt 0:00:01]} Rd8 {[%emt 0:00:06]} 28. Ne2 {[%emt
0:00:37]} Kg8 {[%emt 0:00:11]} 29. Rf4 {[%emt 0:00:03]} Rf8 {[%emt 0:00:05]}
30. Nd4 {[%emt 0:00:27]} Rxf4 {[%emt 0:00:08]} 31. exf4 {[%emt 0:00:01]} a6 {
[%emt 0:00:13]} 32. g4 {[%emt 0:00:18]} g6 {[%emt 0:00:12]} 33. Kf2 {[%emt 0:
00:02]} Kg7 {[%emt 0:00:01]} 34. Kf3 {[%emt 0:00:07]} Kf7 {[%emt 0:00:17]} 35.
Kg3 {[%emt 0:00:17]} Kg7 {[%emt 0:00:04]} 36. h4 {[%emt 0:00:13]} Kh7 {[%emt 0:
00:04]} 37. Kf3 {[%emt 0:00:04]} Kg7 {[%emt 0:00:01]} 38. Ke3 {[%emt 0:00:06]}
Kf7 {[%emt 0:00:04]} 39. Kd3 {[%emt 0:00:02]} Ke7 {[%emt 0:00:20]} 40. Nf3 {
[%emt 0:00:02]} Kf7 {[%emt 0:00:04]} 41. Kd4 {[%emt 0:00:03]} Ke7 {[%emt 0:00:
07]} 42. Kc3 {[%emt 0:00:13]} Kf7 {[%emt 0:00:06]} 43. Kb3 {[%emt 0:00:03]} Bc8
{[%emt 0:00:02]} 44. Ka4 {[%emt 0:00:02]} Ke7 {[%emt 0:00:05]} 45. Ka5 {[%emt
0:00:02]} Kd7 {[%emt 0:00:02]} 46. Kb6 {[%emt 0:00:02]} Kd8 {[%emt 0:00:02]}
47. Nd4 {[%emt 0:00:02]} Kd7 {[%emt 0:00:05]} 48. Nb3 {[%emt 0:00:05]} Kd8 {
[%emt 0:00:08]} 49. Nd4 {[%emt 0:00:03]} Kd7 {[%emt 0:00:04]} 50. a4 {[%emt 0:
00:07]} Kd8 {[%emt 0:00:04]} 51. b5 {[%emt 0:00:04]} axb5 {[%emt 0:00:04]} 52.
axb5 {[%emt 0:00:01]} cxb5 {[%emt 0:00:10]} 53. Nxb5 {[%emt 0:00:17]} Kd7 {
[%emt 0:00:03]} 54. Nd4 {[%emt 0:00:11]} Kd8 {[%emt 0:00:06]} 55. c6 {[%emt 0:
00:23]} bxc6 {[%emt 0:00:07]} 56. Kxc6 {[%emt 0:00:02]} Ke7 {[%emt 0:00:01]}
57. Kb6 {[%emt 0:00:07]} Bd7 {[%emt 0:00:05]} 58. Kc5 {[%emt 0:00:04]} Ba4 {
[%emt 0:00:24]} 59. f5 {[%emt 0:00:07]} gxf5 {[%emt 0:00:15]} 60. gxf5 {[%emt
0:00:01]} Bd7 {[%emt 0:00:05]} 61. f6+ {[%emt 0:00:04]} Kf7 {[%emt 0:00:03]}
62. Kd6 {[%emt 0:00:02]} h5 {[%emt 0:00:02]} 63. Kxd7 {[%emt 0:00:02]} Kf8 {
[%emt 0:00:06]} 64. Nxe6+ {[%emt 0:00:02]} Kf7 {[%emt 0:00:02]} 65. Nd4 {[%emt
0:00:03]} Kf8 {[%emt 0:00:02]} 66. e6 {[%emt 0:00:03]} Kg8 {[%emt 0:00:02]} 67.
e7 {[%emt 0:00:03]} 1-0

[Event "Dvaro taure"]
[Site "Taujenai, Lithuania"]
[Date "2021.11.28"]
[Round "6.25"]
[White "Alejunaite, Milda"]
[Black "Bubnys, Marius"]
[Result "0-1"]
[WhiteElo "1171"]
[BlackElo "1490"]
[PlyCount "58"]
[EventDate "2021.??.??"]
[TimeControl "10+5"]
[WhiteClock "0:04:45"]
[BlackClock "0:07:01"]

1. e4 {[%emt 0:29:03]} d6 {[%emt 0:00:00]} 2. d4 {[%emt 0:00:13]} Nf6 {[%emt 0:
00:02]} 3. Nc3 {[%emt 0:00:02]} g6 {[%emt 0:00:03]} 4. Nf3 {[%emt 0:00:03]} Bg7
{[%emt 0:00:00]} 5. Bc4 {[%emt 0:00:14]} c5 {[%emt 0:00:09]} 6. dxc5 {[%emt 0:
00:07]} Qa5 {[%emt 0:00:06]} 7. O-O {[%emt 0:01:05]} Qxc5 {[%emt 0:00:10]} 8.
Bb5+ {[%emt 0:00:15]} Bd7 {[%emt 0:00:19]} 9. Be3 {[%emt 0:00:21]} Qc7 {[%emt
0:00:25]} 10. h3 {[%emt 0:00:30]} O-O {[%emt 0:00:03]} 11. a3 {[%emt 0:00:17]}
Nc6 {[%emt 0:01:07]} 12. Nd5 {[%emt 0:00:33]} Nxd5 {[%emt 0:00:20]} 13. Bxc6 {
[%emt 0:00:13]} Nxe3 {[%emt 0:00:14]} 14. fxe3 {[%emt 0:00:09]} Bxc6 {[%emt 0:
00:05]} 15. Qd3 {[%emt 0:00:15]} Bxb2 {[%emt 0:00:17]} 16. Rab1 {[%emt 0:00:03]
} Bg7 {[%emt 0:00:06]} 17. Nd4 {[%emt 0:00:37]} a6 {[%emt 0:00:16]} 18. Nxc6 {
[%emt 0:00:43]} Qxc6 {[%emt 0:00:06]} 19. Qd5 {[%emt 0:00:05]} Qxd5 {[%emt 0:
00:11]} 20. exd5 {[%emt 0:00:00]} b5 {[%emt 0:00:03]} 21. e4 {[%emt 0:00:13]}
Rac8 {[%emt 0:00:05]} 22. Rfc1 {[%emt 0:00:42]} Bh6 {[%emt 0:00:11]} 23. Rd1 {
[%emt 0:00:02]} Rxc2 {[%emt 0:00:05]} 24. Re1 {[%emt 0:00:14]} Rfc8 {[%emt 0:
00:07]} 25. e5 {[%emt 0:00:29]} Rc1 {[%emt 0:00:15]} 26. exd6 {[%emt 0:00:05]}
exd6 {[%emt 0:00:11]} 27. Kf2 {[%emt 0:00:17]} Rxb1 {[%emt 0:00:09]} 28. Rxb1 {
[%emt 0:00:01]} Rc2+ {[%emt 0:00:07]} 29. Kf1 {[%emt 0:00:05]} Rc1+ {[%emt 0:
00:02]} 0-1

[Event "Dvaro taure"]
[Site "Taujenai, Lithuania"]
[Date "2021.11.28"]
[Round "6.26"]
[White "Mikolavicius, Marius"]
[Black "Mendelis, Mantas"]
[Result "0-1"]
[WhiteElo "1062"]
[BlackElo "1021"]
[PlyCount "109"]
[EventDate "2021.??.??"]
[TimeControl "10+5"]
[WhiteClock "0:00:10"]
[BlackClock "0:00:35"]

1. e4 {[%emt 0:00:03]} e5 {[%emt 0:00:01]} 2. Nf3 {[%emt 0:00:00]} Nc6 {[%emt
0:00:03]} 3. Bb5 {[%emt 0:00:02]} a6 {[%emt 0:00:03]} 4. Ba4 {[%emt 0:00:01]}
b5 {[%emt 0:00:03]} 5. Bb3 {[%emt 0:00:01]} d6 {[%emt 0:00:05]} 6. c3 {[%emt 0:
00:13]} Bg4 {[%emt 0:00:02]} 7. d4 {[%emt 0:00:15]} exd4 {[%emt 0:00:04]} 8.
cxd4 {[%emt 0:00:02]} Qf6 {[%emt 0:00:19]} 9. h3 {[%emt 0:01:09]} Bh5 {[%emt 0:
00:04]} 10. O-O {[%emt 0:00:13]} Bxf3 {[%emt 0:00:46]} 11. Qxf3 {[%emt 0:00:03]
} Qxf3 {[%emt 0:00:01]} 12. gxf3 {[%emt 0:00:02]} Nxd4 {[%emt 0:00:10]} 13. Kg2
{[%emt 0:01:08]} Nf6 {[%emt 0:00:23]} 14. Re1 {[%emt 0:00:47]} Nxb3 {[%emt 0:
00:18]} 15. axb3 {[%emt 0:00:03]} Be7 {[%emt 0:00:41]} 16. Nc3 {[%emt 0:00:06]}
c6 {[%emt 0:00:25]} 17. Bg5 {[%emt 0:01:10]} O-O {[%emt 0:00:07]} 18. Bxf6 {
[%emt 0:00:18]} Bxf6 {[%emt 0:00:02]} 19. Rad1 {[%emt 0:00:07]} Rad8 {[%emt 0:
00:05]} 20. Ra1 {[%emt 0:00:25]} Ra8 {[%emt 0:00:04]} 21. Rad1 {[%emt 0:00:03]}
Rad8 {[%emt 0:00:07]} 22. Ra1 {[%emt 0:00:04]} Ra8 {[%emt 0:00:02]} 23. Rad1 {
[%emt 0:00:06]} Rfd8 {[%emt 0:00:15]} 24. Rd2 {[%emt 0:00:20]} h5 {[%emt 0:00:
39]} 25. Red1 {[%emt 0:00:06]} Be5 {[%emt 0:00:02]} 26. Ne2 {[%emt 0:01:03]} g5
{[%emt 0:00:21]} 27. Nd4 {[%emt 0:00:10]} c5 {[%emt 0:00:55]} 28. Nc6 {[%emt 0:
00:13]} Bf4 {[%emt 0:00:31]} 29. Rd5 {[%emt 0:00:42]} Re8 {[%emt 0:02:24]} 30.
Re1 {[%emt 0:01:17]} Rac8 {[%emt 0:00:18]} 31. Na7 {[%emt 0:00:27]} Rc7 {[%emt
0:00:10]} 32. Nxb5 {[%emt 0:00:45]} axb5 {[%emt 0:00:05]} 33. Ra1 {[%emt 0:00:
18]} c4 {[%emt 0:01:06]} 34. Rxb5 {[%emt 0:00:27]} cxb3 {[%emt 0:00:15]} 35.
Rxb3 {[%emt 0:00:03]} Be5 {[%emt 0:00:23]} 36. Rb5 {[%emt 0:00:19]} Rf8 {[%emt
0:00:27]} 37. Raa5 {[%emt 0:00:20]} Re7 {[%emt 0:00:14]} 38. b3 {[%emt 0:00:10]
} f5 {[%emt 0:00:05]} 39. exf5 {[%emt 0:00:10]} Rxf5 {[%emt 0:00:02]} 40. Rb8+
{[%emt 0:00:10]} Kf7 {[%emt 0:00:02]} 41. Raa8 {[%emt 0:00:05]} Rd7 {[%emt 0:
00:07]} 42. Rf8+ {[%emt 0:00:06]} Kg6 {[%emt 0:00:30]} 43. Rg8+ {[%emt 0:00:06]
} Kf6 {[%emt 0:00:11]} 44. Rgf8+ {[%emt 0:00:14]} Kg6 {[%emt 0:00:03]} 45. Rg8+
{[%emt 0:00:04]} Kf6 {[%emt 0:00:01]} 46. Rgf8+ {[%emt 0:00:02]} Ke6 {[%emt 0:
00:01]} 47. Rfe8+ {[%emt 0:00:06]} Kd5 {[%emt 0:00:03]} 48. Ra5+ {[%emt 0:00:
04]} Kc6 {[%emt 0:00:05]} 49. Rc8+ {[%emt 0:00:04]} Kb7 {[%emt 0:00:04]} 50.
Rc1 {[%emt 0:00:13]} Rf4 {[%emt 0:00:07]} 51. Rb5+ {[%emt 0:00:10]} Ka6 {[%emt
0:00:05]} 52. Rb8 {[%emt 0:00:06]} Rb7 {[%emt 0:00:07]} 53. Ra1+ {[%emt 0:00:
02]} Kb6 {[%emt 0:00:02]} 54. Rc8 {[%emt 0:00:03]} Bxa1 {[%emt 0:00:03]} 55.
Rc5 {[%emt 0:00:09]} 0-1